bitfinex-derivatives/quotes_ETHF0:USTF0_20250430
["timestamp","ask_amount","ask_price","bid_price","bid_amount"]
[1746000704818,6.62202498,1797.9,1797.8,1.11219]
[1746000705211,10.45002498,1797.9,1797.8,1.11219]
[1746000705617,10.44998523,1797.9,1797.8,1.11219]
[1746000706619,10.03118069,1797.9,1797.8,1.11219]
[1746000707013,10.03118069,1797.9,1797.8,4.31999]
[1746000707915,10.44986602,1797.9,1797.8,4.31999]
[1746000708121,10.44986602,1797.9,1797.8,5.90379]
[1746000708513,9.53411122,1797.9,1797.8,5.90379]
[1746000709124,5.70611122,1797.9,1797.8,5.90379]
[1746000709322,2.03793053,1797.9,1797.8,5.90379]
[1746000709518,2.03787498,1797.9,1797.8,5.90379]
[1746000710420,1.6193,1797.9,1797.8,5.90379]
[1746000710817,2.0378059,1797.9,1797.8,5.90379]
[1746000711816,1.6193,1797.9,1797.8,5.90379]
[1746000714124,2.03789719,1797.9,1797.8,5.90379]
[1746000714422,1.6193,1797.9,1797.8,5.90379]
[1746000717424,1.6193,1797.9,1797.8,4.31999]
[1746000717725,1.6193,1797.9,1797.8,1.11219]
[1746000718317,5.4473,1797.9,1797.8,7.01419]
[1746000718524,5.4473,1797.9,1797.8,11.93199]
[1746000718725,3.828,1797.9,1797.8,11.93199]
[1746000719226,1.651,1798.1,1798.0,1.11206]
[1746000719421,2.06992403,1798.1,1798.0,7.94186]
[1746000719723,1.651,1798.1,1798.0,7.94186]
[1746000719922,1.651,1798.1,1798.0,10.59346]
[1746000720825,0.9792,1798.2,1798.1,1.112]
[1746000721230,3.66818069,1798.3,1798.2,1.11194]
[1746000721436,3.66818069,1798.3,1798.2,4.31974]
[1746000721726,2.24213069,1798.3,1798.2,7.05064]
[1746000721922,0.73438069,1798.3,1798.2,7.05064]
[1746000722119,5.50227103,1798.4,1798.3,1.11188]
[1746000722319,5.50227103,1798.4,1798.3,6.46688]
[1746000722515,5.50227103,1798.4,1798.3,12.36888]
[1746000722723,5.50227103,1798.4,1798.3,49.54888]
[1746000722921,8.02817103,1798.4,1798.3,51.43388]
[1746000723121,8.02817103,1798.4,1798.3,41.91188]
[1746000723321,8.99857103,1798.4,1798.3,45.53188]
[1746000724221,12.82657103,1798.4,1798.3,45.53188]
[1746000726132,7.3243,1798.4,1798.3,45.53188]
[1746000727925,7.3243,1798.4,1798.3,1.11188]
[1746000729433,7.3243,1798.4,1798.3,2.09548]
[1746000729834,7.3243,1798.4,1798.3,1.11188]
[1746000732535,3.828,1798.4,1798.3,1.11188]
[1746000732728,3.828,1798.4,1798.3,4.73088]
[1746000733536,5.4252,1798.4,1798.3,1.11188]
[1746000733834,6.41,1798.4,1798.3,1.11188]
[1746000734229,7.52182,1798.4,1798.2,47.6268]
[1746000734433,1.5972,1798.3,1798.2,48.73868]
[1746000735235,5.4252,1798.3,1798.2,48.73868]
[1746000735431,5.4252,1798.3,1798.2,45.11968]
[1746000735626,5.4252,1798.3,1798.2,41.91188]
[1746000736030,5.4252,1798.3,1798.2,43.55548]
[1746000736335,1.5972,1798.3,1798.2,43.55548]
[1746000738936,4.1176,1798.5,1798.4,1.11182]
[1746000739136,7.9456,1798.5,1798.4,1.11182]
[1746000739434,9.05735,1798.5,1798.4,1.11182]
[1746000739831,9.47574516,1798.5,1798.4,1.11182]
[1746000741029,6.26794516,1798.5,1798.4,1.11182]
[1746000741237,5.15619516,1798.5,1798.4,1.11182]
[1746000741930,4.7378,1798.5,1798.4,1.11182]
[1746000742437,6.3861,1798.5,1798.4,1.11182]
[1746000742640,7.91646893,1798.5,1798.4,1.11182]
[1746000742939,6.80471893,1798.5,1798.4,1.11182]
[1746000745536,6.80471893,1798.5,1798.4,2.09972]
[1746000746537,3.828,1798.5,1798.4,5.30752]
[1746000746738,3.828,1798.5,1798.4,7.05032]
[1746000747137,1.6033,1798.7,1798.6,1.11169]
[1746000747338,2.02238713,1798.7,1798.6,1.11169]
[1746000747837,2.02238713,1798.7,1798.6,3.65459]
[1746000748333,0.41908713,1798.7,1798.6,6.86239]
[1746000748832,8.95477103,1798.9,1798.8,1.11157]
[1746000749137,6.80025798,1798.9,1798.8,1.11157]
[1746000749331,4.24725798,1798.9,1798.8,1.11157]
[1746000749531,4.24725798,1798.9,1798.8,9.52517]
[1746000749733,3.828,1798.9,1798.8,9.52517]
[1746000750130,1.6284,1799.0,1798.9,1.11151]
[1746000750330,2.5738,1799.0,1798.9,1.11151]
[1746000750535,2.99266693,1799.0,1798.9,2.05621]
[1746000750736,4.10411693,1799.0,1798.9,2.05621]
[1746000751033,2.99266693,1799.0,1798.9,2.05621]
[1746000751234,6.82051237,1799.0,1798.9,2.05621]
[1746000751538,6.4018,1799.0,1798.9,2.05621]
[1746000752038,5.50227103,1799.2,1799.1,1.11138]
[1746000752242,5.50227103,1799.2,1799.1,4.72938]
[1746000752443,7.13067103,1799.2,1799.1,4.72938]
[1746000752737,7.13067103,1799.2,1799.1,6.42328]
[1746000752935,1.6284,1799.2,1799.1,6.42328]
[1746000753538,1.6284,1799.2,1799.1,2.80528]
[1746000753732,1.6284,1799.2,1799.1,6.42228]
[1746000754137,5.4564,1799.2,1799.1,1.11138]
[1746000754940,5.4564,1799.2,1798.9,4.5617]
[1746000755141,1.6003,1799.1,1799.0,1.11138]
[1746000755439,2.5241,1799.1,1799.0,1.11138]
[1746000756144,2.5241,1799.1,1798.7,0.9411]
[1746000756145,7.5241,1799.1,1798.7,0.9411]
[1746000756443,2.6723,1799.0,1798.9,1.11151]
[1746000756639,3.78375,1799.0,1798.9,1.11151]
[1746000756843,6.29774588,1799.0,1798.7,1.11159]
[1746000757139,3.21340626,1798.9,1798.8,1.11157]
[1746000757641,2.10186626,1798.9,1798.8,1.11157]
[1746000758235,5.92989769,1798.9,1798.8,1.11157]
[1746000758431,5.5122,1798.9,1798.8,1.11157]
[1746000758637,7.04140835,1798.9,1798.8,1.11157]
[1746000760545,7.04142601,1798.9,1798.8,1.11157]
[1746000761335,5.92991601,1798.9,1798.8,1.11157]
[1746000761539,7.04142601,1798.9,1798.8,1.11157]
[1746000762549,5.92991601,1798.9,1798.8,1.11157]
[1746000763248,7.04142601,1798.9,1798.8,1.11157]
[1746000763551,5.92991601,1798.9,1798.8,1.11157]
[1746000763847,5.5122,1798.9,1798.8,1.11157]
[1746000764246,6.62371,1798.9,1798.8,1.11157]
[1746000764447,1.11157,1798.8,1798.7,1.11158]
[1746000764648,1.11169,1798.7,1798.6,1.11166]
[1746000764951,3.04019,1798.7,1798.6,1.11166]
[1746000765155,6.86819,1798.7,1798.6,1.11166]
[1746000765344,8.48653,1798.7,1798.6,1.11166]
[1746000765544,6.4046,1798.7,1798.6,1.11166]
[1746000766051,7.51623,1798.7,1798.6,1.11166]
[1746000767954,3.828,1798.7,1798.6,1.11166]
[1746000768251,3.828,1798.7,1798.6,2.70086]
[1746000768454,5.5238,1798.7,1798.6,2.70086]
[1746000769154,3.828,1798.7,1798.6,11.81066]
[1746000769555,3.828,1798.7,1798.6,8.60286]
[1746000770261,5.98656,1799.0,1798.5,0.985]
[1746000770568,1.11166,1798.7,1798.6,1.11164]
[1746000770762,1.1116,1798.8,1798.7,1.11158]
[1746000771262,4.9396,1798.8,1798.7,1.11158]
[1746000772364,5.35792752,1798.8,1798.7,1.11158]
[1746000773256,5.35789752,1798.8,1798.7,1.11158]
[1746000774457,4.24632752,1798.8,1798.7,1.11158]
[1746000775058,4.24652981,1798.8,1798.7,2.09528]
[1746000775463,5.35809981,1798.8,1798.7,2.09528]
[1746000775965,5.35820777,1798.8,1798.7,1.11158]
[1746000776960,1.11169,1798.7,1798.6,1.11165]
[1746000777162,6.31822777,1798.7,1798.6,1.11165]
[1746000777363,1.11175,1798.6,1798.5,1.11172]
[1746000777563,4.7879,1798.7,1798.6,1.11169]
[1746000777766,6.31825203,1798.7,1798.6,1.11169]
[1746000779559,6.31816,1798.7,1798.6,1.11169]
[1746000781068,6.31817017,1798.7,1798.6,1.11169]
[1746000781269,7.98547017,1798.7,1798.6,1.11169]
[1746000781969,8.93727017,1798.7,1798.6,1.11169]
[1746000783968,1.11175,1798.5,1798.4,7.01609]
[1746000784169,5.35882512,1798.5,1798.4,3.80829]
[1746000784369,1.11182,1798.4,1798.3,2.09597]
[1746000784667,4.08139512,1798.4,1798.3,3.02957]
[1746000784863,4.08139512,1798.4,1798.3,4.67467]
[1746000785065,7.90939512,1798.4,1798.3,4.67467]
[1746000785969,6.3785,1798.4,1798.3,4.67467]
[1746000786377,3.828,1798.4,1798.3,4.67467]
[1746000786571,4.24672149,1798.4,1798.3,4.67467]
[1746000787273,0.41872149,1798.4,1798.3,4.67467]
[1746000788472,1.11177,1798.5,1798.4,1.11182]
[1746000788773,1.53033543,1798.5,1798.4,2.70622]
[1746000789068,5.35833543,1798.5,1798.4,2.70622]
[1746000789672,7.08973543,1798.5,1798.4,2.70622]
[1746000790766,5.97796543,1798.5,1798.4,2.70622]
[1746000790961,4.24656543,1798.5,1798.4,2.70622]
[1746000791169,0.41856543,1798.5,1798.4,2.70622]
[1746000791665,9.82166103,1798.8,1798.7,1.11163]
[1746000791867,11.55306103,1798.8,1798.7,1.11163]
[1746000792267,1.11163,1798.7,1798.6,4.66784]
[1746000792468,1.5301234,1798.7,1798.6,4.66784]
[1746000792768,3.2821234,1798.7,1798.6,4.66784]
[1746000792976,3.2821234,1798.7,1798.6,2.98154]
[1746000793174,7.1101234,1798.7,1798.6,2.98154]
[1746000793373,7.1101234,1798.7,1798.6,2.05904]
[1746000793772,1.11175,1798.6,1798.5,1.11169]
[1746000793975,3.2822434,1798.6,1798.5,1.11169]
[1746000794174,8.01418494,1798.6,1798.5,1.11169]
[1746000794775,11.22198494,1798.6,1798.5,1.11169]
[1746000794973,4.24653494,1798.6,1798.5,1.11169]
[1746000795171,0.41853494,1798.6,1798.5,2.69409]
[1746000795868,0.41853494,1798.6,1798.5,8.59609]
[1746000796167,1.11164,1798.7,1798.6,1.11169]
[1746000796365,1.53017748,1798.7,1798.6,4.71689]
[1746000797078,0.41853748,1798.7,1798.6,4.71689]
[1746000797265,4.24653748,1798.7,1798.6,4.71689]
[1746000797473,5.35816748,1798.7,1798.6,4.71689]
[1746000798375,4.24653748,1798.7,1798.6,4.71689]
[1746000800978,4.24659123,1798.7,1798.6,4.71689]
[1746000801178,0.41859123,1798.7,1798.6,4.71689]
[1746000801877,11.43343103,1799.0,1798.9,1.11151]
[1746000802073,17.48368166,1799.0,1798.9,1.11151]
[1746000802675,16.37222166,1799.0,1798.9,3.02831]
[1746000803173,13.16442166,1799.0,1798.9,3.02831]
[1746000803480,14.27587166,1799.0,1798.9,3.02831]
[1746000803678,13.16442166,1799.0,1798.9,3.02831]
[1746000803879,13.16441552,1799.0,1798.9,3.02831]
[1746000804077,11.55251552,1799.0,1798.9,3.02831]
[1746000804375,7.72451552,1799.0,1798.9,8.93031]
[1746000804578,7.72451552,1799.0,1798.9,10.63931]
[1746000805874,7.72446079,1799.0,1798.9,10.63931]
[1746000806074,0.41850626,1799.0,1798.9,10.63931]
[1746000809477,7.30595453,1799.3,1798.9,18.7588]
[1746000809783,9.09651956,1799.5,1799.4,1.1112]
[1746000809974,9.09651956,1799.5,1799.4,48.764]
[1746000810283,7.3644798,1799.5,1799.4,52.592]
[1746000810477,7.3644798,1799.5,1799.4,48.947]
[1746000810682,7.3644798,1799.5,1799.4,52.592]
[1746000810878,8.9943798,1799.5,1799.4,52.592]
[1746000811083,9.9181798,1799.5,1799.4,52.592]
[1746000811279,13.7461798,1799.5,1799.4,48.764]
[1746000811684,11.1924798,1799.5,1799.4,50.3675]
[1746000812283,7.3644798,1799.5,1799.4,50.3675]
[1746000812679,7.3644798,1799.5,1799.4,51.3055]
[1746000812880,8.9943798,1799.5,1799.4,51.3055]
[1746000813080,8.9943798,1799.5,1799.4,49.702]
[1746000813276,12.8223798,1799.5,1799.4,48.764]
[1746000814289,5.4579,1799.5,1799.4,48.764]
[1746000814583,3.828,1799.5,1799.4,50.4948]
[1746000815186,1.6212,1799.6,1799.5,1.11114]
[1746000815387,2.73228,1799.6,1799.5,1.11114]
[1746000815591,2.5397,1799.6,1799.5,1.11114]
[1746000816389,6.3677,1799.6,1799.5,1.11114]
[1746000817885,5.4492,1799.6,1799.5,1.11114]
[1746000818589,6.4321,1799.6,1799.5,1.11114]
[1746000819089,7.54318,1799.6,1799.5,1.11114]
[1746000820686,6.4321,1799.6,1799.5,1.11114]
[1746000820886,3.828,1799.6,1799.5,1.11114]
[1746000821091,1.5994,1799.6,1799.5,1.11114]
[1746000821893,2.71048,1799.6,1799.5,1.11114]
[1746000822083,6.53848,1799.6,1799.5,1.11114]
[1746000823587,4.93908,1799.6,1799.5,1.11114]
[1746000823782,3.828,1799.6,1799.5,1.11114]
[1746000823984,5.5481,1799.6,1799.5,2.81084]
[1746000824184,1.7201,1799.6,1799.5,2.81084]
[1746000825088,5.5481,1799.6,1799.5,2.81084]
[1746000826595,6.65918,1799.6,1799.5,1.11114]
[1746000826994,5.5481,1799.6,1799.5,1.11114]
[1746000827195,3.828,1799.6,1799.5,8.64144]
[1746000827392,3.828,1799.6,1799.5,11.84924]
[1746000828097,3.3629,1799.7,1799.5,11.84924]
[1746000828098,3.3629,1799.7,1799.6,1.11108]
[1746000828296,3.3629,1799.7,1799.6,2.03658]
[1746000828603,2.4098,1799.7,1799.6,4.64178]
[1746000829093,0.6659,1799.7,1799.6,4.64178]
[1746000830096,2.2852,1799.7,1799.6,4.64178]
[1746000830896,2.2852,1799.7,1799.6,3.01348]
[1746000831096,6.1132,1799.7,1799.6,3.01348]
[1746000831491,4.4939,1799.7,1799.6,8.01348]
[1746000831697,4.4939,1799.7,1799.6,9.61468]
[1746000831997,4.4939,1799.7,1799.6,4.61468]
[1746000832201,0.6659,1799.7,1799.6,4.61468]
[1746000832797,0.6659,1799.7,1799.6,10.51668]
[1746000833004,4.31852,1800.2,1799.6,10.51668]
[1746000833005,3.2078,1800.2,1800.1,1.11077]
[1746000833392,3.2078,1800.2,1800.1,41.91077]
[1746000833593,5.8094,1800.2,1800.1,41.91077]
[1746000834093,5.8094,1800.2,1800.0,7.01278]
[1746000834300,2.73227,1800.1,1800.0,5.902]
[1746000834600,2.73227,1800.1,1800.0,7.01283]
[1746000834994,2.73227,1800.1,1800.0,5.902]
[1746000835190,8.22648,1800.1,1799.6,3.675]
[1746000835396,5.97379,1800.0,1799.9,1.11085]
[1746000835597,2.76599,1800.0,1799.9,1.11085]
[1746000836303,6.59399,1800.0,1799.9,1.11085]
[1746000836600,9.80173,1800.0,1799.9,1.11085]
[1746000837497,8.6909,1800.0,1799.6,44.475]
[1746000837703,1.11101,1799.8,1799.7,1.11097]
[1746000838190,5.4831,1799.8,1799.7,1.11097]
[1746000838602,6.59405,1799.8,1799.7,1.11097]
[1746000840603,5.4831,1799.8,1799.7,1.11097]
[1746000841205,5.4831,1799.8,1799.7,2.73807]
[1746000842201,1.6551,1799.8,1799.7,2.73807]
[1746000843205,3.8330636,1800.0,1799.9,1.11089]
[1746000843593,3.8330636,1800.0,1799.9,3.83649]
[1746000843793,3.8330636,1800.0,1799.9,7.51049]
[1746000844209,0.0050636,1800.0,1799.9,7.51049]
[1746000845900,0.0050636,1800.0,1799.9,13.41249]
[1746000848103,0.0050636,1800.0,1799.9,16.62029]
[1746000849103,0.0050636,1800.0,1799.9,20.44829]
[1746000851009,0.0050636,1800.0,1799.9,25.44829]
[1746000851308,0.0050636,1800.0,1799.9,20.44829]
[1746000852206,0.0050636,1800.0,1799.9,16.62029]
[1746000852411,2.5319636,1800.0,1799.9,14.87279]
[1746000855115,6.3599636,1800.0,1799.9,14.87279]
[1746000855306,3.8330636,1800.0,1799.9,14.87279]
[1746000856116,0.0050636,1800.0,1799.9,14.87279]
[1746000857104,0.0050636,1800.0,1799.9,20.43579]
[1746000858210,0.0050636,1800.0,1799.9,16.60779]
[1746000859312,0.0050636,1800.0,1799.9,20.43579]
[1746000863208,0.0050636,1800.0,1799.9,16.60779]
[1746000864217,1.7117636,1800.0,1799.9,14.87279]
[1746000864523,2.6605636,1800.0,1799.9,7.99269]
[1746000865122,6.4885636,1800.0,1799.9,7.99269]
[1746000866227,2.6605636,1800.0,1799.9,9.65919]
[1746000867127,6.4885636,1800.0,1799.9,7.99269]
[1746000867426,6.4885636,1800.0,1799.9,4.78489]
[1746000867626,1.11089,1799.9,1799.8,10.7039]
[1746000867827,2.83549,1799.9,1799.8,10.7039]
[1746000868027,7.83549,1799.9,1799.8,7.0129]
[1746000868228,6.66349,1799.9,1799.8,7.0129]
[1746000868528,5.5526,1799.9,1799.8,7.0129]
[1746000869120,4.21840691,1801.2,1800.3,3.2078]
[1746000869323,4.21840691,1801.2,1801.1,4.31795]
[1746000869620,9.21840691,1801.2,1800.9,7.0998]
[1746000869827,4.8588,1801.1,1800.8,1.7218]
[1746000870123,3.05736871,1800.9,1800.8,41.91031]
[1746000870545,1.89894871,1800.9,1800.8,41.91031]
[1746000870824,4.21840691,1801.2,1801.1,1.11015]
[1746000871019,4.21840691,1801.2,1801.1,8.20995]
[1746000871229,8.04640691,1801.2,1801.1,8.20995]
[1746000871822,9.94535562,1801.2,1801.1,4.31795]
[1746000872214,12.72931951,1801.3,1801.2,1.11009]
[1746000872420,12.72931951,1801.3,1801.2,6.61529]
[1746000873322,12.72931951,1801.3,1801.2,10.44329]
[1746000874031,14.43601951,1801.3,1801.2,10.44329]
[1746000874229,14.43601951,1801.3,1801.2,6.61529]
[1746000874432,14.43601951,1801.3,1801.2,12.51729]
[1746000874627,14.43601951,1801.3,1801.2,10.90409]
[1746000875627,14.43601951,1801.3,1801.2,7.01209]
[1746000875836,14.43601951,1801.3,1801.2,5.902]
[1746000876025,1.7067,1801.3,1801.2,7.01209]
[1746000877026,1.7067,1801.3,1801.2,8.70169]
[1746000877527,1.7067,1801.3,1800.9,7.0988]
[1746000877728,1.7067,1801.3,1801.1,1.11015]
[1746000878037,1.11009,1801.2,1801.1,1.11015]
[1746000878633,2.82789,1801.2,1801.1,1.11015]
[1746000879332,6.65589,1801.2,1801.1,1.11015]
[1746000879522,1.11018,1801.1,1801.0,1.11018]
[1746000879720,2.82798,1801.1,1801.0,1.11018]
[1746000880131,6.65598,1801.1,1801.0,1.11018]
[1746000880631,1.11033,1800.8,1800.7,4.31814]
[1746000880826,1.11033,1800.8,1800.7,1.11034]
[1746000881032,1.1103,1800.9,1800.8,1.11029]
[1746000881235,7.70108,1801.1,1800.7,40.8]
[1746000881424,1.7029,1800.8,1800.7,41.9104]
[1746000881834,2.81323,1800.8,1800.7,41.9104]
[1746000882235,1.7029,1800.8,1800.7,41.9104]
[1746000882435,2.81323,1800.8,1800.7,41.9104]
[1746000883136,6.64123,1800.8,1800.7,41.9104]
[1746000883438,6.64123,1800.8,1800.7,1.1104]
[1746000883937,1.1104,1800.7,1800.6,40.8]
[1746000884139,2.8305,1800.7,1800.6,41.91046]
[1746000884338,4.7045,1800.7,1800.6,40.8]
[1746000884542,1.11046,1800.6,1800.5,4.3183]
[1746000884742,2.83056,1800.6,1800.5,4.3183]
[1746000885036,1.7201,1800.6,1800.5,4.3183]
[1746000885337,5.5481,1800.6,1800.5,6.018]
[1746000886240,1.7201,1800.6,1800.5,4.3183]
[1746000887442,2.83056,1800.6,1800.5,4.3183]
[1746000887642,1.7201,1800.6,1800.5,4.3183]
[1746000888842,2.83056,1800.6,1800.5,4.3183]
[1746000889844,2.83056,1800.6,1800.5,1.1105]
[1746000893146,6.65856,1800.6,1800.5,1.1105]
[1746000893747,1.11058,1800.5,1800.4,1.11054]
[1746000893948,2.75768,1800.5,1800.4,1.11054]
[1746000894239,6.58568,1800.5,1800.4,1.11054]
[1746000897251,5.4751,1800.5,1800.4,1.11054]
[1746000897749,5.4751,1800.5,1800.4,2.71364]
[1746000898247,1.6471,1800.5,1800.4,2.71364]
[1746000898850,2.75762,1800.5,1800.4,2.71364]
[1746000899045,1.6471,1800.5,1800.4,2.71364]
[1746000899744,2.75762,1800.5,1800.4,2.71364]
[1746000900851,2.75762,1800.5,1800.4,1.11054]
[1746000901448,1.4935,1800.6,1800.5,1.11052]
[1746000901847,1.9838,1800.6,1800.5,2.76972]
[1746000902451,3.09426,1800.6,1800.5,2.76972]
[1746000903148,0.383,1800.6,1800.5,2.76972]
[1746000903653,2.99994,1800.7,1800.6,1.11046]
[1746000903852,2.99994,1800.7,1800.6,2.84876]
[1746000904048,2.04854,1800.7,1800.6,2.84876]
[1746000904254,5.87654,1800.7,1800.6,2.84876]
[1746000904950,7.56654,1800.7,1800.6,2.84876]
[1746000906561,7.56654,1800.7,1800.6,1.11046]
[1746000907257,1.11052,1800.6,1800.5,1.11049]
[1746000907454,2.69622,1800.6,1800.5,1.11049]
[1746000907654,1.11052,1800.5,1800.4,4.97654]
[1746000907960,2.69622,1800.5,1800.4,1.11054]
[1746000908166,1.1107,1800.2,1800.1,8.1845]
[1746000908356,2.77659,1800.4,1800.1,8.1845]
[1746000908357,1.1107,1800.3,1800.2,1.11065]
[1746000908561,1.0236,1800.3,1800.2,1.11065]
[1746000908860,3.81054,1800.3,1800.2,2.80645]
[1746000909165,6.5279,1800.3,1800.2,2.80645]
[1746000909564,3.828,1800.3,1800.2,2.80645]
[1746000910263,1.11058,1800.4,1800.3,1.11064]
[1746000910462,1.11058,1800.4,1800.3,2.80644]
[1746000910963,5.99467,1800.5,1800.4,1.11058]
[1746000911165,5.5043,1800.5,1800.4,1.11058]
[1746000911667,5.5043,1800.5,1800.4,2.85158]
[1746000912056,3.828,1800.5,1800.4,2.85158]
[1746000912262,2.19149,1800.6,1800.5,1.11052]
[1746000912464,2.19149,1800.6,1800.5,2.85152]
[1746000912770,2.13409,1800.6,1800.5,2.85152]
[1746000914770,2.13409,1800.6,1800.5,1.741]
[1746000914969,2.13409,1800.6,1800.5,1.11052]
[1746000915370,3.87719,1800.6,1800.5,1.11052]
[1746000916268,3.87719,1800.6,1800.5,2.74442]
[1746000918069,3.87719,1800.6,1800.5,1.11052]
[1746000918474,1.11058,1800.5,1800.4,1.11053]
[1746000918682,2.77238,1800.5,1800.4,1.11053]
[1746000919175,6.60038,1800.5,1800.4,1.11053]
[1746000919669,1.11058,1800.4,1800.3,4.31839]
[1746000919869,3.75248,1800.4,1800.3,4.31839]
[1746000920176,2.6419,1800.4,1800.3,4.31839]
[1746000920375,2.6419,1800.4,1800.3,5.99289]
[1746000920672,3.60241,1800.6,1800.5,1.11052]
[1746000920975,5.22321,1800.6,1800.5,1.11052]
[1746000921171,9.05121,1800.6,1800.5,1.11052]
[1746000922170,5.22321,1800.6,1800.5,1.11052]
[1746000922572,3.75491,1800.6,1800.5,1.11052]
[1746000923178,1.11058,1800.5,1800.4,1.11054]
[1746000923378,2.73138,1800.5,1800.4,1.11054]
[1746000923977,1.6208,1800.5,1800.4,1.11054]
[1746000924179,5.4488,1800.5,1800.4,1.11054]
[1746000924378,5.4488,1800.5,1800.4,2.76254]
[1746000924781,4.203,1800.7,1800.6,1.11046]
[1746000924977,4.203,1800.7,1800.6,4.31826]
[1746000925183,0.664,1800.7,1800.6,4.31826]
[1746000925382,0.664,1800.7,1800.6,5.97026]
[1746000932771,3.2292,1800.7,1800.6,5.97026]
[1746000933084,0.664,1800.7,1800.6,5.97026]
[1746000933286,2.2468,1800.7,1800.6,4.31826]
[1746000934389,3.2033,1800.7,1800.6,4.31826]
[1746000935386,3.2033,1800.7,1800.6,6.02046]
[1746000936987,0.664,1800.7,1800.6,6.02046]
[1746000942702,0.664,1800.7,1800.6,11.92246]
[1746000943591,2.8605,1800.8,1800.7,1.1104]
[1746000943785,1.5258,1800.8,1800.7,7.592]
[1746000943985,1.4684,1800.8,1800.7,7.592]
[1746000944292,3.3376,1800.8,1800.7,11.42]
[1746000945193,3.6174,1800.8,1800.7,11.42]
[1746000947698,0.9517,1800.9,1800.8,1.11033]
[1746000947894,3.2078,1801.4,1800.8,1.11033]
[1746000947895,2.7692,1801.4,1801.3,1.05263]
[1746000948097,1.035,1801.4,1801.3,1.05263]
[1746000948898,1.035,1801.4,1801.3,41.85263]
[1746000951402,3.2078,1801.8,1801.3,40.8]
[1746000951697,2.0132,1801.7,1801.6,1.10984]
[1746000951892,3.12298,1801.7,1801.6,1.10984]
[1746000952092,2.0132,1801.7,1801.6,1.10984]
[1746000952788,3.12298,1801.7,1801.6,1.10984]
[1746000952994,2.0132,1801.7,1801.6,1.10984]
[1746000953195,5.8412,1801.7,1801.6,1.10984]
[1746000954097,3.828,1801.7,1801.6,4.31764]
[1746000954402,4.2139,1802.0,1801.9,1.10966]
[1746000954790,1.0061,1802.0,1801.9,1.10966]
[1746000955197,4.8341,1802.0,1801.9,1.10966]
[1746000955495,5.8401,1802.0,1801.9,1.10966]
[1746000958098,2.0121,1802.0,1801.9,1.10966]
[1746000959906,2.0121,1802.0,1801.9,4.31746]
[1746000960807,4.31719,1802.4,1802.3,1.10941]
[1746000961104,8.14519,1802.4,1802.3,1.10941]
[1746000961305,8.14515,1802.4,1802.3,1.10941]
[1746000961808,9.77195,1802.4,1802.3,1.10941]
[1746000962104,5.4548,1802.4,1802.3,1.10941]
[1746000962409,5.4548,1802.4,1802.3,4.87141]
[1746000962705,3.828,1802.4,1802.3,4.87141]
[1746000962905,3.828,1802.4,1802.3,6.56631]
[1746000963206,1.6268,1802.6,1802.5,1.10929]
[1746000963409,1.6268,1802.6,1802.5,4.31709]
[1746000964403,1.6268,1802.6,1802.5,45.11709]
[1746000964800,2.73603,1802.6,1802.5,45.11709]
[1746000965199,6.56403,1802.6,1802.5,45.11709]
[1746000966206,1.10933,1802.5,1802.4,1.10931]
[1746000966402,3.69743,1802.5,1802.4,1.10931]
[1746000967206,7.52539,1802.5,1802.4,1.10931]
[1746000968007,1.10935,1802.4,1802.2,40.8]
[1746000968199,2.08381,1802.3,1802.2,1.10947]
[1746000968596,0.9744,1802.3,1802.2,1.10947]
[1746000969001,2.5702,1802.3,1802.2,1.10947]
[1746000969202,6.3982,1802.3,1802.2,1.10947]
[1746000969808,7.50761,1802.3,1802.2,1.10947]
[1746000971307,1.10947,1802.2,1802.1,1.10948]
[1746000971611,2.7569,1802.2,1802.1,1.10948]
[1746000971906,3.86637,1802.2,1802.1,1.10948]
[1746000972116,1.10964,1802.0,1801.9,1.10966]
[1746000972408,1.10966,1801.9,1801.8,1.10968]
[1746000972609,1.10972,1801.8,1801.7,4.31753]
[1746000972803,3.90322,1801.8,1801.7,3.2078]
[1746000973008,1.10984,1801.6,1801.5,8.07866]
[1746000973311,1.7416,1801.7,1801.6,1.10984]
[1746000973709,2.85138,1801.7,1801.6,1.10984]
[1746000974109,6.67938,1801.7,1801.6,1.10984]
[1746000974509,1.10984,1801.6,1801.5,1.10986]
[1746000974803,1.10995,1801.5,1801.4,1.10993]
[1746000975010,2.16875,1801.5,1801.4,1.10993]
[1746000975909,3.89975,1801.5,1801.4,1.10993]
[1746000976110,7.72775,1801.5,1801.4,1.10993]
[1746000976512,1.10997,1801.4,1801.3,4.31778]
[1746000976712,3.81527,1801.4,1801.3,4.31778]
[1746000977207,2.7053,1801.4,1801.3,4.31778]
[1746000977412,3.81527,1801.4,1801.3,4.31778]
[1746000977609,3.81527,1801.4,1801.3,3.2078]
[1746000978313,7.64327,1801.4,1801.3,3.2078]
[1746000981118,1.11015,1801.1,1801.0,3.2078]
[1746000981318,1.11015,1801.1,1801.0,4.318]
[1746000981511,2.71853,1801.2,1801.1,1.11014]
[1746000982319,1.11015,1801.1,1801.0,4.31798]
[1746000982618,3.75945,1801.1,1801.0,3.2078]
[1746000983018,3.75945,1801.1,1801.0,4.31801]
[1746000983212,7.58745,1801.1,1801.0,1.11021]
[1746000985121,1.11027,1801.0,1800.9,1.11023]
[1746000985324,3.73537,1801.0,1800.9,1.11023]
[1746000986218,7.56337,1801.0,1800.9,1.11023]
[1746000986721,1.11027,1800.9,1800.8,5.94823]
[1746000986921,2.71827,1800.9,1800.8,5.94823]
[1746000988521,2.71827,1800.9,1800.8,4.31813]